{"text_format":"1","workbook":"xlsx","n_sheets":1,"sheets":["Sheboygan North Invitational - "],"not_rendered":{"charts":0,"images":0,"macros":0,"external_links":0,"defined_names":0,"comments":0,"pivot_tables":0},"unopened":[],"bounds":{"document_bytes":16777216,"sheet_cells":100000,"rows_first":2000,"rows_last":500,"rows_between":2000,"halvings":0,"cell_chars":16384,"cell_head_chars":4096},"cells_cut":0,"cells_raw":0,"read":"whole","date_system":"1900"}

{"sheet":"Sheboygan North Invitational - ","index":0,"n_rows":227,"n_cols":11,"rows_kept":227,"cut":false,"hidden":false,"merged":[]}
["Sheboygan North Invite"]
["Blackwolf Run Championship Course and Whitstling Straits - Irish"]
["4/20/22 and 4/21/22"]
[]
["Player","TM","R1","R2","Total",null,null,"Team","R1","R2","Overall"]
["Mason Schmidtke","Sheboygan North",74,75,149,null,1,"Waunakee",329,318,647]
["Michael Addie","Hamilton",81,70,151,null,{"$f":"G6+1","v":2},"Edgewood",353,320,673]
["Zeke Boos","Edgewood",82,71,153,null,{"$f":"G7+1","v":3},"Kettle Moraine",352,322,674]
["Alex Weiss","Edgewood",82,74,156,null,4,"Sheboygan North",330,344,674]
["Sam Hurley","Ashwaubenon",77,80,157,null,5,"Ashwaubenon",328,349,677]
["Alex Koenig","Kettle Moraine",83,75,158,null,6,"Middleton",343,335,678]
["Brady Piazza","Waunakee",80,78,158,null,7,"Homestead",353,326,679]
["Maxwell  Brud","Waunakee",82,77,159,null,8,"Germantown",335,353,688]
["Jake Jazgar","Ashwaubenon",77,82,159,null,9,"Marquette",358,331,689]
["Tyler Schick","Sun Prairie",78,83,161,null,10,"Menomonee Falls",352,351,703]
["Joe Fricker","Homestead",86,77,163,null,11,"Fond du Lac",350,354,704]
["Sebastian Kasun","Marquette",83,80,163,null,12,"Hudson",364,341,705]
["Camden Schmidt","Germantown",79,84,163,null,13,"De Pere",361,346,707]
["KC Nickel","Waunakee",84,80,164,null,14,"Hamilton",371,337,708]
["Luke Ladd","Homestead",84,80,164,null,15,"Brookfield Central",353,364,717]
["Charlie Jambor","Middleton",89,76,165,null,16,"Notre Dame Academy",375,345,720]
["Brady Bleck","Plymouth",76,89,165,null,17,"Saint Croix Central",353,370,723]
["Sam Mehlberg ","De Pere",86,80,166,null,18,"Sun Prairie",348,376,724]
["August Johnson","Waunakee",83,83,166,null,19,"Waukesha North",351,375,726]
["Nicholas Mueller","Saint Croix Central",77,89,166,null,20,"Wauwatosa Co-Op",366,362,728]
["Sam Sonsalla","Brookfield Central",86,81,167,null,21,"Manitowoc Lincoln",348,382,730]
["Peter Hoeppner","Waukesha North",84,83,167,null,22,"Plymouth",363,372,735]
["William Mauthe","Fond du Lac",83,84,167,null,23,"Green Bay Preble",358,380,738]
["Sam Dethloff","Menomonee Falls",83,84,167,null,24,"Sheboygan Falls",358,380,738]
["Alec Sosnowski ","Middleton",82,86,168,null,25,"Slinger",382,361,743]
["Jackson Cross","Marquette",90,79,169,null,26,"Mukwonago",359,386,745]
["Jack Weisenberger","De Pere",89,80,169,null,27,"Pulaski",362,385,747]
["Hunter  Thibert","Homestead",87,82,169,null,28,"Bay Port",371,382,753]
["Landon  Stanislowski ","Manitowoc Lincoln",79,90,169,null,29,"Badger",380,388,768]
["Cole Ropicky","Kettle Moraine",90,80,170,null,30,"Stevens Point",380,388,768]
["Ben Hilbelink","Menomonee Falls",87,83,170,null,31,"Kaukauna",375,393,768]
["Joe Bartels","Hudson",86,84,170,null,32,"Hartford Union",397,379,776]
["Will Summers","Slinger",88,83,171,null,33,"Port Washington",373,403,776]
["Ryder Miller","Sheboygan North",83,88,171,null,34,"Rice Lake",398,387,785]
["Dain Johnson","Middleton",83,88,171,null,35,"Sheboygan South",387,406,793]
["Andrew Kettle","Sheboygan Falls",79,92,171,null,36,"Nicolet",394,403,797]
["Sam Sies","Germantown",85,87,172,null,37,"West Bend West",402,408,810]
["Ryan Darling","Notre Dame Academy",90,83,173,null,38,"Mosinee",422,400,822]
["Tyler Schroeder","Mukwonago",85,88,173,null,39,"Kewaskum",414,458,872]
["Joey Bruss","Germantown",83,90,173,null,40,"West Bend East",444,442,886]
["Sam Swavely","Hudson",92,82,174,null,41,"Green Bay Southwest",443,444,887]
["Wyatt Pfeiffer","Fond du Lac",88,86,174,null,42,"Waukesha South",451,454,905]
["Ben Soboleski","Wauwatosa Co-Op",92,83,175]
["James Baker","Middleton",89,86,175]
["Patrick Kennedy","Green Bay Preble",87,88,175]
["Charles Johnson","Ashwaubenon",85,90,175]
["Joseph Fenceroy","Marquette",89,87,176]
["Alexander Nustad","Brookfield Central",89,87,176]
["Brandon  Hillman ","Hudson",91,86,177]
["Mason Frohna","Kettle Moraine",91,86,177]
["Jackson Piacsek","Waukesha North",90,87,177]
["TJ Walton","Badger",90,87,177]
["Drew Sjowall","Middleton",90,87,177]
["Konor Tignall","Bay Port",89,88,177]
["Jack Guentner","Sheboygan Falls",88,89,177]
["Hogan Miller","Sheboygan North",87,90,177]
["Brayden Stengel","Sheboygan North",86,91,177]
["Noah Doherty","Port Washington",85,92,177]
["Jackson Blaine","Fond du Lac",91,87,178]
["Spencer Stuke","Kettle Moraine",98,81,179]
["Ethan LeCaptain","Notre Dame Academy",94,85,179]
["Ethan Thomas","Stevens Point",93,86,179]
["Elias Rhoades","Hamilton",89,91,180]
["Marco Bamrah","Marquette",96,85,181]
["Zachary Greenhill","Slinger",93,88,181]
["Colin Schultz","Pulaski",92,89,181]
["Devin Evraets","Mukwonago",88,93,181]
["Logan Elliott","Manitowoc Lincoln",86,95,181]
["Al Deang","Edgewood",95,87,182]
["Finnegan  Jaeger ","Edgewood",94,88,182]
["Davin Hauck","Rice Lake",91,91,182]
["Max Krug","Kettle Moraine",88,94,182]
["Ben Handal","Homestead",96,87,183]
["Brady Isselmann","Hartford Union",95,88,183]
["Noah Schmitz","Saint Croix Central",93,90,183]
["Jake Wertz","Menomonee Falls",92,91,183]
["Nolan Thompson","Menomonee Falls",90,93,183]
["Matt Sheridan","Plymouth",90,93,183]
["Austin Tostrup","Green Bay Preble",89,94,183]
["Dylan Carley","Pulaski",86,97,183]
["Jett walters","Mosinee",99,85,184]
["Brady Gilbert","Hudson",95,89,184]
["Finn  Somers","Wauwatosa Co-Op",94,90,184]
["Evan Harmann","De Pere",92,92,184]
["Owen Rozeboom ","Saint Croix Central",91,93,184]
["Joey Nygro","Wauwatosa Co-Op",90,94,184]
["Nolan Henry","Hamilton",97,88,185]
["Aidan Marlier","Wauwatosa Co-Op",90,95,185]
["Will Goddard","Brookfield Central",88,97,185]
["Cole Thorin","Fond du Lac",88,97,185]
["Triston Behrend","Notre Dame Academy",95,91,186]
["Evan Friendshuh","Bay Port",92,94,186]
["Aidan O‚ÄôGara","Sun Prairie",91,95,186]
["Logan Stoll","Hudson",97,90,187]
["Oliver  Maleki ","Homestead",96,91,187]
["Evan Spaeth ","West Bend West",94,93,187]
["Evan Dombrowski ","Manitowoc Lincoln",95,93,188]
["Jack Jacquat","Plymouth",95,93,188]
["Cal Matzke","De Pere",94,94,188]
["Jacob Hollfelder","Sun Prairie",89,99,188]
["Ethan Wilke","Green Bay Preble",89,99,188]
["AJ Anderson","Waukesha North",88,100,188]
["Daniel Elling","Nicolet",91,98,189]
["Alex Oehrlein ","Sun Prairie",90,99,189]
["Kason Boivin","Brookfield Central",90,99,189]
["Bergen Wagner","Ashwaubenon",89,100,189]
["Andrew Neusen","Slinger",98,92,190]
["Will Gulrajani","Wauwatosa Co-Op",94,96,190]
["Jack McGrane","Saint Croix Central",92,98,190]
["Cody Schmidt","Germantown",92,98,190]
["nolan buchaklian ","Sheboygan Falls",90,100,190]
["Oliver  Peck ","Nicolet",101,90,191]
["Davis  Glavan ","Sheboygan South",94,97,191]
["Nathan Earnest","Stevens Point",91,100,191]
["Connor Burant","Pulaski",90,101,191]
["Sam Knapp","Kaukauna",89,102,191]
["Michael Broeker","Marquette",105,87,192]
["Joey Simmons","Hamilton",104,88,192]
["Ian Ledger","Fond du Lac",95,97,192]
["Dixon Holewinski","Pulaski",94,98,192]
["Alec Reichwald","Green Bay Preble",93,99,192]
["Maxwell Schneider","Manitowoc Lincoln",88,104,192]
["Alex  Buckoski","Kaukauna",103,90,193]
["Hayden Brickley","Sheboygan South",95,98,193]
["Hayden Streblow","Sheboygan South",93,100,193]
["Eason Hurd","Ashwaubenon",97,97,194]
["Preston Lamirande","Bay Port",93,101,194]
["Gabe  Roe","Sun Prairie",92,102,194]
["Brady Noble","Waukesha North",89,105,194]
["Jack Berken","Kaukauna",98,97,195]
["Jacob Kozelek","Stevens Point",95,100,195]
["Noah Schneider","Kaukauna",86,109,195]
["Jonas Fechner ","Port Washington",97,99,196]
["Ty McGreevy","Badger",98,99,197]
["Charlie Huerth","Badger",97,100,197]
["Kyle Patton ","Badger",95,102,197]
["Nick Harpstead ","Plymouth",102,97,199]
["Austin Soli","Green Bay Preble",100,99,199]
["Daniel  Hansen","Port Washington",97,102,199]
["Logan Olson","Rice Lake",104,96,200]
["Jack Louko","Sheboygan Falls",101,99,200]
["Mason Waters","Hartford Union",98,102,200]
["Landon Maphis","Waukesha North",98,102,200]
["Chase Pickett","West Bend West",96,104,200]
["Derrick Palm","Slinger",103,98,201]
["Abe Gingle ","Bay Port",97,104,201]
["John  Hujet","De Pere",101,101,202]
["Matthew Zagar","Hartford Union",100,102,202]
["Brady Bohn","Green Bay Southwest",97,105,202]
["Devin Rustlie","Bay Port",104,99,203]
["Kieran Doherty ","West Bend East",103,100,203]
["AJ Earnest","Stevens Point",101,102,203]
["Carson Tomesh","Rice Lake",100,103,203]
["Connor Griesemer ","Kewaskum",90,113,203]
["Kevin Nelson","Nicolet",104,101,205]
["Bennett Waara","Sheboygan North",103,102,205]
["Bergen Resnick","Rice Lake",103,102,205]
["Gavin  Lahm","Kaukauna",102,104,206]
["Cooper Barry","Mukwonago",101,106,207]
["Thomas  Kinney","Edgewood",99,108,207]
["Bryce  Belter","Mukwonago",90,117,207]
["Garret Donohue","Mosinee",109,99,208]
["Ryan Spaeth","West Bend West",107,103,210]
["Brady Boyle","Waukesha South",100,110,210]
["Carson Talledge","Saint Croix Central",104,107,211]
["Aaron Still","Waukesha North",104,107,211]
["Aidan Putnam","Rice Lake",114,98,212]
["Joe Held","West Bend West",105,108,213]
["Russell Bittner","Mosinee",111,103,214]
["Kreston Selsing","Hartford Union",105,109,214]
["Drew Dombrowski","Manitowoc Lincoln",105,110,215]
["Grant Bittner","Badger",112,104,216]
["Brody Kral","Kewaskum",109,107,216]
["Keegan Przybyla","Port Washington",106,110,216]
["Krisjanis Kaugars","Nicolet",98,118,216]
["Andrew  Zick","Waukesha South",113,104,217]
["Alex Gonzalez","West Bend East",107,110,217]
["Treven Mullins","Mosinee",105,113,218]
["Daniel Stein","Nicolet",105,114,219]
["Tanner Hora","Slinger",112,108,220]
["Ryan Cook","Kewaskum",103,117,220]
["Hayden Ackerlund ","Stevens Point",112,110,222]
["Jacob Goetz","West Bend West",111,111,222]
["Zach Groh","Sheboygan South",105,117,222]
["Reece Zebro","Mosinee",109,116,225]
["Miles Rauschenbach ","Green Bay Southwest",110,116,226]
["Aiden Cox","Green Bay Southwest",123,106,229]
["Elijah Berrong","Waukesha South",112,117,229]
["Michael Balkowski","West Bend East",118,113,231]
["Jameson Huber","Green Bay Southwest",116,117,233]
["Alex Theusch","Kewaskum",112,121,233]
["Preston Miller","Sheboygan South",124,111,235]
["Payton Fox","West Bend East",116,119,235]
["Holden Serwe","Kewaskum",119,121,240]
["Tyson Truebenbach ","Waukesha South",126,123,249]
["Logan Higgins","Sheboygan Falls",125,134,259]
["John Hynst","West Bend East",123,139,262]
["Kaden Diemer","Green Bay Southwest",120,"WD",120]
["Justin Ische","Germantown",88,null,88]
["Luke Wubbolding","Waunakee",92,null,92]
["Quinn Barrington","Port Washington",94,null,94]
["John Mierow","Mukwonago",96,null,96]
["Thomas Bobinski ","Notre Dame Academy",96,null,96]
["Garrett Stokelbusch","Brookfield Central",99,null,99]
["William Toth","Menomonee Falls",102,null,102]
["Justin Sabel","Plymouth",104,null,104]
["Owen Kuepper","Hartford Union",104,null,104]
["Ryan Addie","Hamilton",107,null,107]
["Sam Schneider","Notre Dame Academy",108,null,108]
["Benson Chlopek","Pulaski",146,null,146]
["Jack Bondowski","Notre Dame Academy",null,86,86]
["Hunter Wenzel","Hartford Union",null,87,87]
["Bennett Madson","Notre Dame Academy",null,91,91]
["Jake Mann","Waunakee",null,91,91]
["Kolby Bohling ","Germantown",null,92,92]
["Ryan Walczak ","Menomonee Falls",null,96,96]
["Jack DeGeorge","Hamilton",null,98,98]
["Dane Krimpelbein","Mukwonago",null,99,99]
["Tim Aghjian","Brookfield Central",null,100,100]
["Zachary Valeria","Pulaski",null,108,108]
["Zach Stucke","Plymouth",null,122,122]
["Gavin Borth","Port Washington",null,122,122]